bitfinex/quotes_ETHUSD_20251119
["timestamp","ask_amount","ask_price","bid_price","bid_amount"]
[1763586345063,0.6866,2962.2,2960.5,0.90699264]
[1763586345064,0.4899,2962.1,2960.5,0.90699264]
[1763586345266,0.4899,2962.1,2960.3,0.119]
[1763586345581,0.1967,2960.4,2959.5,0.119]
[1763586345949,0.6866,2960.4,2959.5,0.119]
[1763586346345,0.4899,2960.3,2959.1,0.1813]
[1763586347672,0.1967,2960.4,2959.1,0.1813]
[1763586349588,0.6866,2960.4,2959.1,0.1813]
[1763586350254,0.4899,2960.3,2959.1,0.1813]
[1763586351195,0.1967,2959.2,2957.8,7.83388542]
[1763586351504,0.4899,2960.3,2958.7,0.90699264]
[1763586351655,0.4899,2960.3,2958.8,0.119]
[1763586351859,0.4899,2960.3,2959.1,0.90699264]
[1763586352092,0.1967,2960.4,2959.1,0.90699264]
[1763586353304,0.4899,2960.7,2958.8,0.119]
[1763586353305,0.1967,2960.6,2959.5,1.31249664]
[1763586353511,0.1967,2960.6,2959.6,0.3389]
[1763586354152,0.1967,2960.8,2959.6,0.3389]
[1763586354392,0.1967,2960.8,2959.7,0.744404]
[1763586355104,0.1967,2960.8,2959.9,1.31249664]
[1763586355458,12.88439047,2962.5,2959.9,1.31249664]
[1763586355762,0.1967,2961.3,2960.2,8.17278542]
[1763586355980,0.4899,2961.5,2960.4,0.3389]
[1763586356177,0.1967,2961.2,2960.4,0.3389]
[1763586356962,0.6866,2961.2,2960.1,0.3389]
[1763586357158,0.6866,2961.2,2958.7,0.66809916]
[1763586357377,0.4899,2961.1,2959.0,7.95388542]
[1763586357577,0.4899,2961.1,2959.0,0.12]
[1763586357759,0.4899,2961.1,2959.4,0.405504]
[1763586357959,0.4899,2961.1,2959.4,1.24589264]
[1763586358188,0.4899,2961.1,2959.6,0.3389]
[1763586358784,0.4899,2961.1,2959.4,0.90699264]
[1763586359068,0.1967,2960.0,2958.8,0.001]
[1763586359566,0.1967,2961.2,2958.8,0.001]
[1763586359567,0.6866,2960.2,2959.1,1.24589264]
[1763586360663,0.6866,2960.2,2959.0,1.24689264]
[1763586361281,0.4899,2960.1,2959.0,1.24689264]
[1763586361491,0.4899,2960.1,2959.0,0.3399]
[1763586361802,0.1967,2960.2,2959.0,0.001]
[1763586362109,0.4899,2961.0,2959.7,0.90699264]
[1763586362311,0.4899,2961.0,2959.8,0.524504]
[1763586362491,0.4899,2961.0,2959.8,0.119]
[1763586362893,0.4899,2961.0,2959.9,0.3389]
[1763586363117,0.4899,2961.0,2960.1,0.405504]
[1763586363283,0.1967,2961.2,2960.1,0.405504]
[1763586363466,0.4899,2961.1,2960.1,0.405504]
[1763586363792,0.4899,2961.1,2960.0,0.3389]
[1763586363958,0.4899,2961.1,2959.9,0.744404]
[1763586365160,0.4899,2961.1,2959.9,0.3389]
[1763586365579,0.4899,2961.1,2959.0,7.83488542]
[1763586365762,0.4899,2961.1,2959.0,0.001]
[1763586367066,0.1967,2959.1,2959.0,0.001]
[1763586367673,0.6866,2959.1,2959.0,0.001]
[1763586369394,0.6866,2959.1,2958.8,0.001]
[1763586369696,0.4928,2959.0,2958.8,0.001]
[1763586371507,0.4864,2958.9,2958.8,0.001]
[1763586371675,0.4928,2959.0,2958.8,0.001]
[1763586371871,0.1967,2959.1,2958.8,0.001]
[1763586372277,0.1878,2958.9,2958.8,0.001]
[1763586372500,0.1878,2960.0,2958.8,0.001]
[1763586372802,0.4928,2959.8,2958.8,0.001]
[1763586373095,0.45986658,2959.8,2958.8,0.001]
[1763586373300,0.1878,2958.9,2958.8,0.001]
[1763586373669,0.1878,2960.0,2958.8,0.001]
[1763586374600,0.1878,2960.0,2959.1,7.83388542]
[1763586374785,0.002,2960.2,2959.2,0.90699264]
[1763586375513,0.4948,2960.2,2959.2,0.90699264]
[1763586376088,0.002,2960.2,2959.6,0.90699264]
[1763586376301,0.002,2960.2,2959.7,0.119]
[1763586377008,0.002,2960.2,2958.8,0.001]
[1763586377009,0.4948,2960.2,2959.2,0.90699264]
[1763586377208,0.4948,2960.2,2959.3,0.119]
[1763586377209,0.1878,2959.8,2959.3,0.119]
[1763586377412,0.4928,2959.7,2959.3,0.119]
[1763586377594,0.4928,2959.7,2958.8,0.90799264]
[1763586377790,0.4928,2959.7,2958.8,0.12]
[1763586378093,0.4928,2959.7,2958.8,0.001]
[1763586379520,0.4928,2959.7,2958.8,0.03479748]
[1763586379726,0.1878,2959.8,2959.5,7.83388542]
[1763586379926,0.4928,2959.7,2958.8,0.90799264]
[1763586380094,0.4928,2959.7,2958.9,0.119]
[1763586380815,0.002,2960.2,2959.6,7.83388542]
[1763586381012,0.002,2960.2,2960.1,7.83388542]
[1763586382125,0.002,2960.2,2959.5,0.90699264]
[1763586382427,0.002,2960.2,2959.8,7.83388542]
[1763586382626,0.002,2960.2,2959.8,7.95288542]
[1763586383193,0.002,2960.2,2959.9,0.90699264]
[1763586384625,0.002,2960.2,2959.4,0.3389]
[1763586384929,0.002,2960.2,2960.1,9.14638206]
[1763586385233,0.002,2960.2,2960.1,9.26538206]
[1763586385447,0.002,2960.2,2960.1,9.29978206]
[1763586385734,0.4928,2961.4,2960.7,7.83388542]
[1763586385932,0.1878,2961.5,2960.8,0.119]
[1763586386102,0.1878,2962.0,2960.8,0.119]
[1763586386103,0.1999,2961.7,2961.1,7.83388542]
[1763586386439,0.1999,2961.9,2961.1,7.83388542]
[1763586388228,0.1999,2962.4,2961.8,7.83388542]
[1763586388538,0.1999,2962.4,2960.6,0.0344]
[1763586388539,0.6598,2962.4,2960.6,0.0344]
[1763586388714,0.4599,2962.3,2960.8,0.90699264]
[1763586388908,0.4599,2962.3,2960.1,0.0344]
[1763586389120,0.4599,2962.3,2960.4,7.83388542]
[1763586389535,0.4599,2962.3,2961.3,7.83388542]
[1763586389701,0.4599,2962.3,2961.7,7.83388542]
[1763586390099,0.1999,2962.4,2961.7,7.83388542]
[1763586390527,5.05050505,2962.5,2962.1,7.83388542]
[1763586390737,5.05050505,2962.5,2962.1,7.95288542]
[1763586392208,5.05050505,2962.5,2962.2,0.405504]
[1763586392412,0.4599,2963.7,2962.5,0.405504]
[1763586392610,0.4599,2963.7,2962.9,7.83388542]
[1763586392824,0.4599,2963.7,2962.1,7.83388542]
[1763586393019,0.4599,2963.7,2962.2,0.118]
[1763586393653,0.4599,2963.7,2962.5,7.83388542]
[1763586394324,0.4599,2963.7,2962.6,0.118]
[1763586395017,0.1878,2964.0,2962.9,7.83388542]
[1763586395219,0.1878,2964.0,2961.6,4.05972385]
[1763586395220,0.6477,2964.0,2963.0,7.95188542]
[1763586395429,0.6477,2964.0,2963.1,0.405504]
[1763586395725,0.4599,2963.9,2963.0,7.95188542]
[1763586396623,0.4599,2963.9,2963.0,7.83388542]
[1763586397048,0.1878,2964.0,2963.1,0.523504]
[1763586397657,0.63045384,2964.2,2963.2,0.0344]
[1763586397658,0.17055384,2964.2,2963.2,0.0344]
[1763586397857,0.4843,2964.1,2963.2,0.47945494]
[1763586398064,0.4843,2964.1,2963.3,0.118]
[1763586398236,0.4843,2964.0,2963.4,0.118]
[1763586398637,0.1885,2963.9,2963.4,0.118]
[1763586399638,0.17055384,2964.2,2963.6,0.405504]
[1763586400653,5.05050505,2964.7,2964.0,0.405504]
[1763586400980,5.05050505,2964.7,2963.9,7.83388542]
[1763586400981,5.05050505,2964.7,2964.6,8.23938942]
[1763586401180,5.05050505,2964.7,2964.6,8.35738942]
[1763586402534,5.05050505,2964.7,2964.6,0.118]
[1763586402737,5.05050505,2964.7,2964.6,8.35738942]
[1763586402958,5.05050505,2964.7,2964.6,7.95188542]
[1763586403351,5.05050505,2964.7,2964.6,7.83388542]
[1763586403666,5.05050505,2964.7,2964.6,7.95188542]
[1763586403842,5.05050505,2964.7,2964.5,0.118]
[1763586404248,0.4843,2964.6,2964.2,0.118]
[1763586404466,5.05050505,2964.7,2964.2,0.118]
[1763586405055,5.05050505,2964.7,2964.3,7.83388542]
[1763586406496,7.83388542,2967.0,2964.3,7.83388542]
[1763586406497,0.1885,2965.9,2964.4,1.31249664]
[1763586406684,0.1885,2965.9,2965.2,0.405504]
[1763586406892,0.1885,2965.9,2965.3,0.118]
[1763586407853,0.4843,2965.8,2964.4,0.90699264]
[1763586408054,0.4843,2965.8,2964.5,0.523504]
[1763586408263,0.1885,2965.9,2965.1,7.83388542]
[1763586408489,0.1885,2966.3,2965.2,0.118]
[1763586408697,0.4843,2966.2,2965.2,0.118]
[1763586409203,0.4843,2966.2,2964.5,7.95188542]
[1763586409204,0.1885,2965.3,2964.5,7.95188542]
[1763586410687,0.1885,2965.3,2964.5,0.118]
[1763586410906,0.6728,2965.3,2964.5,0.118]
[1763586411256,0.6728,2965.3,2964.1,0.118]
[1763586411257,0.1885,2964.6,2964.1,0.118]
[1763586411493,0.1885,2964.6,2964.3,0.03373477]
[1763586411880,0.1885,2964.6,2964.1,0.118]
[1763586412081,0.6728,2964.6,2964.1,0.118]
[1763586412594,0.4843,2964.5,2964.1,0.118]
[1763586412823,0.4843,2964.5,2962.7,8.16298139]
[1763586413133,0.4843,2964.5,2963.2,8.16298139]
[1763586413315,0.4843,2964.5,2963.3,0.118]
[1763586414535,0.4843,2964.5,2962.6,8.16298139]
[1763586414691,0.4843,2964.5,2962.5,0.001]
[1763586414692,0.1885,2963.4,2962.7,0.118]
[1763586415034,0.1885,2963.4,2962.5,0.001]
[1763586415193,0.4843,2963.3,2962.5,0.001]
[1763586415391,0.4843,2963.3,2962.6,0.118]
[1763586415626,0.4843,2963.3,2962.5,0.119]
[1763586415828,0.1885,2962.6,2962.5,0.119]
[1763586415998,0.1885,2962.6,2962.5,0.001]
[1763586416497,0.6728,2962.6,2962.5,0.001]
[1763586417000,0.6728,2962.6,2959.8,7.44074375]
[1763586417001,0.6728,2962.6,2961.8,0.118]
[1763586417214,0.4843,2962.5,2961.1,0.118]
[1763586417701,0.4843,2962.5,2961.5,0.405504]
[1763586418285,0.4843,2962.5,2961.6,0.118]
[1763586418486,0.1885,2962.8,2961.7,0.405504]
[1763586418691,0.1885,2963.4,2962.0,0.405504]
[1763586418991,0.6728,2963.4,2962.2,0.405504]
[1763586419220,0.1885,2963.4,2962.6,0.405504]
[1763586419409,0.1885,2963.7,2962.8,0.405504]
[1763586419609,0.1885,2963.7,2962.7,0.118]
[1763586420213,0.1885,2963.7,2962.8,0.43925585]
[1763586420425,0.1885,2964.6,2962.8,0.43925585]
[1763586420426,0.4843,2964.4,2963.0,1.31249664]
[1763586420612,0.4843,2964.4,2963.1,0.405504]
[1763586420812,0.1885,2964.6,2963.5,0.405504]
[1763586421027,0.50505051,2966.8,2963.5,1.31249664]
[1763586421028,0.1885,2964.8,2963.5,1.31249664]
[1763586421228,0.1885,2964.8,2963.7,0.405504]
[1763586421418,0.4843,2965.6,2964.5,0.405504]
[1763586421623,0.6728,2965.3,2964.5,0.523504]
[1763586422839,0.1885,2965.6,2964.5,1.43049664]
[1763586423131,0.1885,2965.6,2964.5,0.405504]
[1763586423332,0.1885,2965.6,2964.6,0.118]
[1763586423333,0.4843,2965.5,2964.6,0.118]
[1763586423631,0.4843,2965.5,2964.7,0.118]
[1763586425120,0.4843,2965.5,2963.9,8.16398139]
[1763586425321,0.4843,2965.5,2964.1,0.405504]
[1763586425522,0.4843,2965.5,2964.2,0.118]
[1763586425897,0.4843,2965.5,2964.1,0.405504]
[1763586426104,0.4843,2965.5,2963.9,0.118]
[1763586426404,0.4843,2965.5,2964.0,0.405504]
[1763586426906,0.4843,2965.5,2964.0,1.31249664]
[1763586427228,0.4843,2965.5,2964.5,0.405504]
[1763586427434,0.4843,2965.5,2964.6,0.118]
[1763586427837,0.1885,2965.6,2964.6,0.118]
[1763586428043,0.4849,2965.5,2964.5,0.405504]
[1763586428205,0.4849,2965.5,2963.8,0.90699264]
[1763586428407,0.4849,2965.5,2964.2,0.405504]
[1763586428749,0.1885,2965.6,2964.2,0.405504]
[1763586428750,0.1885,2965.6,2964.6,0.405504]
[1763586429035,0.1885,2965.6,2964.7,0.118]
[1763586429240,0.1852,2966.4,2965.6,0.405504]
[1763586429429,0.1852,2966.4,2965.8,0.405504]
[1763586429740,0.1852,2966.8,2966.0,8.16298139]
[1763586430347,0.1852,2966.8,2966.1,0.405504]
[1763586430643,5.05050505,2966.9,2966.0,8.16298139]
[1763586430842,5.05050505,2966.9,2966.2,0.405504]
[1763586431139,5.23570505,2966.9,2966.2,0.405504]
[1763586431339,0.4849,2966.8,2966.1,0.118]
[1763586431752,5.23570505,2966.9,2966.2,0.405504]
[1763586432326,5.05050505,2966.9,2966.2,1.31249664]
[1763586432757,5.23570505,2966.9,2966.2,1.31249664]
[1763586432923,5.05050505,2966.9,2966.4,0.405504]
[1763586433858,0.4849,2966.8,2965.7,0.90699264]
[1763586434163,0.4849,2966.8,2965.8,0.118]
[1763586434336,0.4849,2966.8,2965.9,0.405504]
[1763586434726,5.23570505,2966.9,2965.9,0.405504]
[1763586434957,5.05050505,2966.9,2966.2,0.405504]
[1763586435258,5.05050505,2966.9,2966.4,0.405504]
[1763586435475,5.23570505,2966.9,2966.4,0.405504]
[1763586435779,0.4849,2966.8,2965.3,0.001]
[1763586435946,0.4849,2966.8,2965.4,0.118]
[1763586436141,5.23570505,2966.9,2965.7,8.16298139]
[1763586436369,0.4849,2966.7,2965.3,0.405504]
[1763586436571,1.0569605,2966.7,2965.1,0.118]
[1763586436758,0.4849,2966.6,2965.1,0.118]
[1763586436962,0.4849,2966.8,2965.4,8.16298139]
[1763586437471,0.4849,2966.8,2965.5,0.405504]
[1763586437671,0.4849,2966.8,2965.4,8.16298139]
[1763586437977,0.4849,2966.8,2965.5,0.405504]
[1763586438475,0.4849,2966.8,2965.6,0.3389]
[1763586438776,0.1852,2965.7,2965.6,0.3389]
[1763586439093,0.1852,2965.7,2965.0,0.118]
[1763586439269,0.1852,2965.9,2965.1,0.465504]
[1763586439478,0.1852,2965.9,2965.2,0.118]
[1763586439661,0.1852,2965.9,2965.0,0.90699264]
[1763586439868,0.6701,2965.9,2964.1,0.001]
[1763586440045,0.6701,2965.9,2964.2,8.28098139]
[1763586440240,0.4849,2965.8,2964.7,8.16298139]
[1763586440441,0.4849,2965.8,2964.9,0.405504]
[1763586440874,0.4849,2965.8,2965.0,0.3389]
[1763586441245,0.1852,2965.9,2965.0,0.3389]
[1763586441574,0.4849,2966.5,2965.3,0.405504]
[1763586441780,0.4849,2966.5,2965.4,0.118]
[1763586442280,0.4849,2966.5,2965.5,0.405504]
[1763586442670,0.4849,2966.5,2965.6,0.118]
[1763586442976,0.4849,2966.5,2965.7,0.03371885]
[1763586443183,0.4849,2966.5,2965.6,0.118]
[1763586445167,0.6439,2965.7,2964.8,0.3389]
[1763586445485,0.6439,2965.7,2964.6,8.16298139]
[1763586445486,0.6439,2965.7,2964.9,0.118]
[1763586445669,0.1852,2964.7,2963.8,8.16398139]
[1763586445846,0.4849,2965.6,2963.8,8.16398139]
[1763586446047,0.4583,2965.5,2964.3,8.16298139]
[1763586446278,0.4583,2965.5,2964.4,0.118]
[1763586447079,0.4583,2965.5,2964.3,0.118]
[1763586448954,0.4583,2965.5,2964.0,0.405504]
[1763586449150,0.4583,2965.5,2963.9,0.90699264]
[1763586449151,0.4583,2965.5,2964.4,0.118]
[1763586449484,0.4583,2965.5,2964.2,0.118]
[1763586449986,0.1897,2964.3,2964.2,0.118]
[1763586450366,0.1852,2965.7,2964.2,0.118]
[1763586450367,0.1897,2964.8,2964.2,0.118]
[1763586450571,0.1897,2964.8,2963.8,8.16298139]
[1763586450772,0.4583,2964.7,2963.9,0.118]
[1763586451309,0.4583,2964.7,2962.4,8.16298139]
[1763586451609,0.1897,2962.6,2960.5,1.216]
[1763586451812,0.1897,2962.6,2961.7,0.118]
[1763586451981,0.648,2962.6,2961.7,0.118]
[1763586453001,0.1897,2962.6,2961.7,0.118]
[1763586453174,0.1897,2962.6,2961.6,8.16298139]
[1763586453175,0.648,2962.6,2961.6,8.16298139]
[1763586453712,0.648,2962.6,2961.7,0.118]
[1763586456585,1.145,2962.6,2961.7,0.118]
[1763586457183,0.1897,2963.2,2962.5,0.119]
[1763586457499,0.4583,2963.1,2962.5,0.001]
[1763586457704,0.497,2962.6,2962.5,0.001]
[1763586457902,0.9693,2962.6,2962.5,0.001]
[1763586458242,0.4723,2963.0,2962.5,0.001]
[1763586458601,0.1897,2963.2,2962.5,0.001]
[1763586458812,0.4922,2962.6,2962.5,0.001]
[1763586459304,0.9645,2962.6,2962.5,0.001]
[1763586464331,0.4922,2962.6,2962.5,0.001]
[1763586464537,0.4723,2963.0,2962.5,0.001]
[1763586465250,0.4922,2962.6,2962.5,0.001]
[1763586465934,0.9645,2962.6,2962.5,0.001]
[1763586466232,0.9665,2962.6,2962.5,0.001]
[1763586466454,0.002,2962.6,2962.5,0.002]
[1763586466604,0.002,2962.6,2962.5,0.408504]
[1763586467054,0.001,2962.6,2962.5,1.65439664]
[1763586467204,0.001,2962.6,2959.3,1.63911871]
[1763586467205,0.1883,2960.9,2959.3,1.63911871]
[1763586467404,0.1883,2960.9,2959.7,0.4593]
[1763586467646,0.1999,2961.6,2960.8,0.1865]
[1763586467847,0.4723,2961.9,2960.8,0.1865]
[1763586468004,0.1999,2961.7,2960.5,0.4593]
[1763586468202,0.1999,2961.7,2960.6,0.12]
[1763586468511,0.4723,2961.6,2960.6,0.12]
[1763586469252,0.4723,2961.6,2960.5,0.1865]
[1763586470355,0.4723,2961.6,2960.5,0.3065]
[1763586470558,0.4723,2961.6,2960.5,0.12]
[1763586470763,0.1999,2961.7,2960.5,0.12]
[1763586471051,0.1999,2962.5,2961.6,0.1865]
[1763586471259,0.1999,2962.5,2961.6,0.3065]
[1763586471665,0.4723,2962.7,2961.6,0.3065]
[1763586471951,0.1999,2962.9,2961.7,0.49306439]
[1763586472164,0.1999,2962.9,2961.7,0.4593]
[1763586472319,0.1999,2962.9,2961.8,0.119]
[1763586472965,0.1999,2961.9,2961.3,0.3055]
[1763586473341,0.4723,2962.4,2961.3,0.3055]
[1763586473917,0.4723,2962.4,2961.3,0.1865]
[1763586474125,0.4723,2962.4,2961.4,0.119]
[1763586475532,0.4723,2962.4,2961.5,0.119]
[1763586476620,0.4723,2962.4,2961.3,0.1865]
[1763586476838,0.4723,2962.4,2961.4,0.119]
[1763586477043,0.4723,2962.4,2961.5,0.119]
[1763586477268,0.30349514,2962.4,2961.5,0.119]
[1763586477485,0.1999,2962.9,2961.5,0.119]
[1763586477665,0.1999,2961.6,2961.3,0.119]
[1763586478196,0.1999,2961.6,2960.5,0.4593]
[1763586478507,0.1999,2961.6,2959.9,0.4593]
[1763586478775,0.1999,2961.9,2960.3,1.519073]
[1763586478942,0.1999,2961.9,2960.3,1.48529264]
[1763586479142,0.1999,2961.9,2960.5,0.3389]
[1763586479379,0.4723,2961.8,2960.5,0.3389]
[1763586479583,0.4723,2961.8,2960.3,0.119]
[1763586479767,0.4723,2961.8,2960.4,0.119]
[1763586479963,0.4723,2961.8,2960.2,0.1865]
[1763586480144,0.4723,2961.8,2960.3,0.5783]
[1763586480544,0.4723,2961.8,2959.1,0.1026]
[1763586480545,7.82215759,2961.7,2959.4,0.4593]
[1763586480845,7.82215759,2961.7,2959.5,0.001]
[1763586480846,0.82944576,2961.6,2959.5,0.001]
[1763586481049,0.82944576,2961.6,2959.6,0.119]
[1763586481249,0.4723,2962.4,2961.5,0.1529]
[1763586481444,0.4723,2962.4,2961.5,0.2729]
[1763586481643,0.4723,2962.4,2961.2,0.1865]
[1763586481856,0.4723,2962.4,2960.9,0.12]
[1763586482657,0.4723,2962.4,2960.7,1.36629264]
[1763586482989,0.4723,2962.4,2960.7,0.4593]
[1763586483191,0.4723,2962.4,2960.8,0.12]
[1763586483496,0.4723,2962.4,2960.4,0.4593]
[1763586483694,0.002,2961.9,2960.4,0.4593]
[1763586483866,0.6722,2961.8,2960.5,0.12]
[1763586484070,0.6722,2961.8,2960.4,0.4593]
[1763586484323,0.4723,2961.7,2960.4,0.4593]
[1763586484481,0.4723,2961.7,2960.5,0.12]
[1763586484880,0.1999,2961.8,2960.5,0.12]
[1763586484881,0.1999,2961.8,2960.6,8.28145759]
[1763586485193,0.1999,2961.8,2960.7,0.12]
[1763586485517,0.1999,2961.8,2960.7,0.5793]
[1763586486486,0.6722,2961.8,2960.8,0.12]
[1763586486681,0.6722,2961.8,2960.7,0.4593]
[1763586486682,0.6722,2961.8,2960.9,0.12]
[1763586486896,0.4723,2961.7,2960.8,0.119]
[1763586487930,0.002,2961.9,2960.9,0.4996]
[1763586488098,0.002,2961.9,2961.1,0.90699264]
[1763586488280,0.002,2961.9,2961.8,0.1959]
[1763586488591,0.002,2961.9,2961.8,0.3149]
[1763586488777,0.002,2961.9,2961.8,8.51765759]
[1763586488983,0.002,2961.9,2961.8,8.63665759]
[1763586489231,0.1951,2961.9,2961.3,0.58059801]
[1763586489387,0.654,2961.9,2960.9,0.12]
[1763586489579,0.1951,2961.9,2960.9,0.12]
[1763586489807,0.1951,2961.9,2960.9,0.6196]
[1763586490214,0.1951,2961.9,2961.0,0.12]
[1763586490422,0.1951,2961.9,2960.9,0.4996]
[1763586490630,0.1951,2961.9,2961.1,0.12]
[1763586490931,0.002,2961.9,2960.9,0.4996]
[1763586491229,0.002,2961.9,2961.2,0.12]
[1763586491602,0.002,2961.9,2961.3,0.1959]
[1763586491815,0.002,2961.9,2960.8,0.4996]
[1763586491816,0.1951,2961.9,2960.8,0.4996]
[1763586492014,0.1951,2961.9,2961.1,0.1959]
[1763586492223,0.1951,2961.9,2961.2,0.12]
[1763586492525,0.4589,2961.8,2961.2,0.12]
[1763586492728,0.4589,2961.8,2960.5,0.8385]
[1763586492896,0.4589,2961.8,2960.6,0.12]
[1763586493611,0.4589,2961.8,2960.7,0.12]
[1763586494327,0.4589,2961.8,2960.1,0.4996]
[1763586494499,0.4589,2961.8,2960.2,0.119]
[1763586494699,0.4589,2961.8,2960.2,0.5686]
[1763586495118,0.4589,2961.8,2960.3,0.119]
[1763586495575,0.1951,2961.9,2960.5,0.405504]
[1763586495721,0.1951,2961.9,2960.7,7.82215759]
[1763586496113,0.654,2961.9,2960.8,0.6186]
[1763586496653,0.002,2961.9,2960.9,7.82215759]
[1763586497149,0.002,2961.9,2961.0,0.4996]
[1763586497739,0.002,2961.9,2961.1,0.1959]
[1763586498739,0.002,2961.9,2961.2,0.4996]
[1763586499036,0.002,2961.9,2961.3,0.119]
[1763586499037,0.1951,2961.9,2961.3,0.119]
[1763586499371,0.002,2961.9,2961.3,0.119]
[1763586499671,0.002,2961.9,2961.4,0.119]
[1763586500141,0.002,2961.9,2961.5,0.53336667]
[1763586500669,0.002,2961.9,2961.5,0.4996]
[1763586501361,0.002,2961.9,2961.8,0.4926]
[1763586501568,0.002,2961.9,2961.8,0.9922]
[1763586502042,0.002,2961.9,2961.8,0.119]
[1763586503461,0.002,2961.9,2961.3,0.4996]
[1763586503664,0.4589,2961.8,2960.0,0.6525]
[1763586504171,0.1931,2960.5,2959.8,0.001]
[1763586504579,0.652,2960.5,2960.2,0.119]
[1763586504879,0.652,2960.5,2959.8,0.001]
[1763586505171,0.1931,2959.9,2959.8,0.001]
[1763586506064,7.82215759,2961.1,2959.8,0.001]
[1763586506065,0.1955,2961.2,2959.8,0.5867]
[1763586506374,0.1955,2961.8,2961.1,0.1911]
[1763586506573,0.1955,2961.8,2961.1,0.3101]
[1763586506975,0.1955,2961.8,2961.2,0.12]
[1763586507150,0.1955,2961.8,2960.9,0.3389]
[1763586507357,0.1955,2961.8,2961.0,0.12]
[1763586507551,0.002,2961.9,2961.0,0.5867]
[1763586507788,0.002,2961.9,2961.1,0.1911]
[1763586508099,0.1975,2961.9,2960.9,0.3389]
[1763586508398,0.6644,2961.9,2961.1,0.119]
[1763586508565,0.1975,2961.9,2961.1,0.119]
[1763586508889,0.1975,2961.9,2961.1,0.3101]
[1763586509541,0.1975,2961.9,2961.1,0.1911]
[1763586509856,0.6644,2961.9,2960.4,0.405504]
[1763586510044,0.6644,2961.9,2960.5,0.119]
[1763586510473,0.6644,2961.9,2960.6,0.4667]
[1763586510792,0.1975,2961.9,2960.7,0.405504]
[1763586511142,0.002,2961.9,2960.9,0.405504]
[1763586511559,0.002,2961.9,2961.8,0.1911]
[1763586511760,0.002,2961.9,2961.8,0.715604]
[1763586512076,0.002,2961.9,2961.8,1.182304]
[1763586512593,0.1955,2964.1,2962.5,0.405504]
[1763586512796,0.1955,2964.1,2962.0,6.78912806]
[1763586512797,0.1955,2964.1,2962.7,0.405504]
[1763586513086,0.4669,2963.9,2962.8,0.119]
[1763586513394,0.1955,2964.1,2963.0,0.405504]
[1763586513544,0.1955,2964.1,2963.2,0.405504]
[1763586513942,0.1955,2964.4,2963.2,0.872204]
[1763586514242,0.4669,2964.7,2963.1,0.1551]
[1763586514243,0.1955,2964.7,2963.4,0.405504]
[1763586514554,0.1955,2964.7,2963.5,0.119]
[1763586514875,0.1955,2964.7,2963.4,0.405504]
[1763586514876,0.4669,2964.6,2963.6,0.119]
[1763586515080,0.4669,2964.6,2963.4,0.405504]
[1763586515253,0.4669,2964.6,2962.7,0.1911]
[1763586515254,0.1955,2963.5,2962.7,0.1911]
[1763586515453,0.1955,2963.5,2962.8,0.119]
[1763586516067,0.1955,2963.5,2962.7,0.1911]
[1763586516384,0.6624,2963.5,2962.8,0.119]
[1763586516587,0.6624,2963.5,2962.3,0.1911]
[1763586516745,0.4669,2963.4,2962.3,0.1911]
[1763586516946,0.4669,2963.4,2961.9,0.4667]
[1763586517160,0.4669,2963.4,2962.1,0.1911]
[1763586517482,0.4669,2963.4,2962.2,0.872204]
[1763586517978,0.494,2964.3,2962.3,0.4718]
[1763586518161,0.494,2964.3,2962.7,1.31249664]
[1763586518342,0.494,2964.3,2962.9,0.405504]
[1763586518775,0.1955,2964.7,2963.1,0.405504]
[1763586518991,0.6895,2964.7,2963.3,0.405504]
[1763586519196,0.6895,2964.7,2962.8,0.4718]
[1763586519348,0.494,2964.6,2962.9,0.405504]
[1763586519552,0.494,2964.6,2963.0,0.119]
[1763586520096,0.1927,2964.9,2963.3,1.31249664]
[1763586520262,0.1927,2964.9,2963.5,0.405504]
[1763586520785,0.1927,2964.9,2963.7,0.405504]
[1763586520987,0.002,2964.7,2963.7,0.405504]
[1763586521148,0.002,2964.7,2963.7,0.877304]
[1763586521575,0.002,2964.7,2963.9,0.405504]
[1763586521784,0.002,2964.7,2963.9,0.877304]
[1763586521984,0.002,2964.7,2964.0,0.119]
[1763586522185,0.002,2964.7,2964.1,0.405504]
[1763586522480,0.002,2964.7,2964.1,0.560604]
[1763586522681,0.002,2964.7,2964.1,1.032404]
[1763586523784,0.002,2964.7,2964.2,7.26092806]
[1763586523959,0.002,2964.7,2964.3,1.31249664]
[1763586524165,0.002,2964.7,2964.4,0.119]
[1763586524361,0.002,2964.7,2964.4,0.5908]
[1763586524763,0.002,2964.7,2964.6,0.405504]
[1763586524987,0.002,2964.7,2964.6,0.524504]
[1763586525189,0.002,2964.7,2964.6,0.405504]
[1763586525391,0.002,2964.7,2964.6,0.996304]
[1763586527095,0.002,2964.7,2964.6,1.90329664]
[1763586527254,0.1927,2966.4,2964.7,0.405504]
[1763586527460,0.1927,2966.6,2965.1,1.31249664]
[1763586527679,0.1927,2966.6,2965.3,0.405504]
[1763586528200,0.1927,2966.6,2965.5,0.405504]
[1763586528558,0.1927,2966.6,2965.7,0.405504]
[1763586528953,0.1927,2966.6,2965.8,0.119]
[1763586529387,5.54450505,2966.9,2965.8,0.119]
[1763586529601,1.06772051,2966.8,2965.8,0.119]